fUSD/lending_fUSD_20240915
["ID","MTS","AMOUNT","RATE_DAILY","PERIOD"]
[338196391,1726383040532,-500.0,0.00012989,2]
[338196392,1726383040541,-1031.37,0.00012989,2]
[338196393,1726383040551,-500.0,0.00012989,2]
[338196394,1726383040561,-500.0,0.00012989,2]
[338196395,1726383040571,-2515.78,0.00012989,2]
[338196396,1726383040580,-537.58,0.00012989,2]
[338196397,1726383040591,-573.58,0.00012989,2]
[338196398,1726383040600,-1195.46,0.00012989,2]
[338196399,1726383040610,-2078.82,0.00012989,2]
[338196400,1726383040619,-670.69,0.00012989,2]
[338196401,1726383040628,-500.0,0.00012989,2]
[338196402,1726383040637,-500.0,0.00012989,2]
[338196403,1726383040646,-500.0,0.00012989,2]
[338196404,1726383040656,-2229.56,0.00012989,2]
[338196406,1726383040665,-500.0,0.00012989,2]
[338196408,1726383040674,-1684.67,0.00012989,2]
[338196410,1726383040683,-1712.04,0.00012989,2]
[338196412,1726383040692,-500.0,0.00012989,2]
[338196414,1726383040701,-1634.51,0.00012989,2]
[338196415,1726383040710,-500.0,0.00012989,2]
[338196417,1726383040720,-1244.3,0.00012989,2]
[338196418,1726383040729,-500.0,0.00012989,2]
[338196420,1726383040738,-3608.53,0.00012989,2]
[338196421,1726383040747,-311.47967789,0.00012989,2]
[338196422,1726383040756,-758.25,0.00012989,2]
[338196423,1726383040765,-500.0,0.00012989,2]
[338196424,1726383040774,-500.0,0.00012989,2]
[338196425,1726383040783,-500.0,0.00012989,2]
[338196426,1726383040792,-1211.15,0.00012989,2]
[338196427,1726383040801,-500.0,0.00012989,2]
[338196428,1726383040810,-500.0,0.00012989,2]
[338196429,1726383040820,-500.0,0.00012989,2]
[338196430,1726383040829,-840.9,0.00012989,2]
[338196431,1726383040838,-518.57,0.00012989,2]
[338196432,1726383040847,-500.0,0.00012989,2]
[338196433,1726383040856,-807.02,0.00012989,2]
[338196434,1726383040865,-500.0,0.00012989,2]
[338196435,1726383040875,-500.0,0.00012989,2]
[338196436,1726383040883,-500.0,0.00012989,2]
[338196437,1726383040892,-569.15,0.00012989,2]
[338196438,1726383040901,-500.0,0.00012989,2]
[338196439,1726383040910,-1382.61,0.00012989,2]
[338196440,1726383040919,-1040.25,0.00012989,2]
[338196441,1726383040929,-500.0,0.00012989,2]
[338196442,1726383040939,-1135.12,0.00012989,2]
[338196443,1726383040949,-500.0,0.00012989,2]
[338196444,1726383040958,-500.0,0.00012989,2]
[338196445,1726383040967,-713.69,0.00012989,2]
[338196446,1726383040977,-500.0,0.00012989,2]
[338196447,1726383040986,-2061.72,0.00012989,2]
[338196448,1726383040996,-1704.58,0.00012989,2]
[338196449,1726383041007,-3330.19,0.00012989,2]
[338196450,1726383041017,-500.0,0.00012989,2]
[338196451,1726383041027,-500.0,0.00012989,2]
[338196452,1726383041037,-5796.04,0.00012989,2]
[338196453,1726383041047,-692.13,0.00012989,2]
[338196454,1726383041059,-500.0,0.00012989,2]
[338196455,1726383041068,-582.84,0.00012989,2]
[338196456,1726383041081,-519.69,0.00012989,2]
[338196457,1726383041091,-500.0,0.00012989,2]
[338196458,1726383041101,-777.37,0.00012989,2]
[338196459,1726383041110,-1819.76,0.00012989,2]
[338196460,1726383041121,-500.0,0.00012989,2]
[338196461,1726383041130,-500.0,0.00012989,2]
[338196462,1726383041139,-500.0,0.00012989,2]
[338196463,1726383041148,-500.0,0.00012989,2]
[338196464,1726383041159,-1369.04,0.00012989,2]
[338196465,1726383041169,-3831.92,0.00012989,2]
[338196466,1726383041178,-567.14,0.00012989,2]
[338196467,1726383041187,-3607.93,0.00012989,2]
[338196468,1726383041196,-1866.69,0.00012989,2]
[338196469,1726383041205,-500.0,0.00012989,2]
[338196470,1726383041214,-500.0,0.00012989,2]
[338196471,1726383041223,-500.0,0.00012989,2]
[338196472,1726383041232,-500.0,0.00012989,2]
[338196473,1726383041241,-2466.99,0.00012989,2]
[338196474,1726383041250,-784.17,0.00012989,2]
[338196475,1726383041259,-500.0,0.00012989,2]
[338196476,1726383041268,-738.72,0.00012989,2]
[338196477,1726383041278,-639.7,0.00012989,2]
[338196478,1726383041287,-1762.02,0.00012989,2]
[338196479,1726383041296,-500.0,0.00012989,2]
[338196480,1726383041307,-500.0,0.00012989,2]
[338196481,1726383041316,-500.0,0.00012989,2]
[338196482,1726383041326,-500.0,0.00012989,2]
[338196483,1726383041336,-13206.02,0.00012989,2]
[338196484,1726383041346,-774.47,0.00012989,2]
[338196485,1726383041355,-835.1,0.00012989,2]
[338196486,1726383041365,-1455.72,0.00012989,2]
[338196487,1726383041374,-3106.01,0.00012989,2]
[338196488,1726383041383,-1612.19,0.00012989,2]
[338196489,1726383041393,-500.0,0.00012989,2]
[338196490,1726383041403,-5972.43,0.00012989,2]
[338196491,1726383041412,-888.09,0.00012989,2]
[338196492,1726383041422,-3358.41,0.00012989,2]
[338196493,1726383041432,-2500.03,0.00012989,2]
[338196494,1726383041441,-2470.01,0.00012989,2]
[338196495,1726383041451,-500.0,0.00012989,2]
[338196496,1726383041461,-1353.44,0.00012989,2]
[338196497,1726383041470,-31841.72,0.00012989,2]
[338196498,1726383041479,-500.0,0.00012989,2]
[338196499,1726383041489,-7158.36,0.00012989,2]
[338196500,1726383041499,-2594.84,0.00012989,2]
[338196501,1726383041509,-2470.37,0.00012989,2]
[338196502,1726383041518,-699.24,0.00012989,2]
[338196503,1726383041528,-500.0,0.00012989,2]
[338196504,1726383041538,-500.0,0.00012989,2]
[338196505,1726383041547,-500.0,0.00012989,2]
[338196506,1726383041557,-500.0,0.00012989,2]
[338196507,1726383041566,-216.09865157,0.00012989,2]
[338196508,1726383041577,-500.0,0.0001299,2]
[338196509,1726383041587,-629.0,0.0001299,2]
[338196510,1726383041596,-1078.3,0.0001299,2]
[338196511,1726383041606,-500.0,0.0001299,2]
[338196512,1726383041616,-500.0,0.0001299,2]
[338196513,1726383041626,-998.85,0.0001299,2]
[338196514,1726383041636,-1217.85,0.0001299,2]
[338196515,1726383041647,-582.59008168,0.0001299,2]
[338196516,1726383041658,-1526.53,0.0001299,2]
[338196517,1726383041667,-500.0,0.0001299,2]
[338196518,1726383041677,-572.8,0.0001299,2]
[338196519,1726383041686,-500.0,0.0001299,2]
[338196520,1726383041697,-500.0,0.0001299,2]
[338196521,1726383041708,-500.0,0.0001299,2]
[338196522,1726383041718,-500.0,0.0001299,2]
[338196523,1726383041729,-500.0,0.0001299,2]
[338196524,1726383041739,-500.0,0.0001299,2]
[338196525,1726383041749,-788.46,0.0001299,2]
[338196526,1726383041758,-500.0,0.0001299,2]
[338196527,1726383041767,-2123.55,0.0001299,2]
[338196528,1726383041776,-500.0,0.0001299,2]
[338196529,1726383041785,-500.0,0.0001299,2]
[338196530,1726383041795,-500.0,0.0001299,2]
[338196531,1726383041805,-500.0,0.0001299,2]
[338196532,1726383041816,-526.59,0.0001299,2]
[338196533,1726383041826,-500.0,0.0001299,2]
[338196534,1726383041836,-612.56,0.0001299,2]
[338196535,1726383041847,-823.23,0.0001299,2]
[338196536,1726383041858,-500.0,0.0001299,2]
[338196537,1726383041868,-500.0,0.0001299,2]
[338196538,1726383041877,-704.42,0.0001299,2]
[338196539,1726383041887,-500.0,0.0001299,2]
[338196540,1726383041896,-500.0,0.0001299,2]
[338196541,1726383041906,-987.31,0.0001299,2]
[338196542,1726383041917,-521.94746969,0.0001299,2]
[338196543,1726383041926,-500.0,0.0001299,2]
[338196544,1726383041935,-544.76,0.0001299,2]
[338196545,1726383041945,-1432.18,0.0001299,2]
[338196546,1726383041955,-1447.72,0.0001299,2]
[338196547,1726383041964,-500.0,0.0001299,2]
[338196548,1726383041973,-793.04,0.0001299,2]
[338196549,1726383041983,-500.0,0.0001299,2]
[338196550,1726383041992,-500.0,0.0001299,2]
[338196551,1726383042002,-1142.63,0.0001299,2]
[338196552,1726383042011,-1405.29,0.0001299,2]
[338196553,1726383042021,-928.43,0.0001299,2]
[338196554,1726383042032,-1278.45,0.0001299,2]
[338196555,1726383042042,-500.0,0.0001299,2]
[338196556,1726383042053,-500.0,0.0001299,2]
[338196557,1726383042066,-500.0,0.0001299,2]
[338196558,1726383042079,-500.0,0.0001299,2]
[338196559,1726383042088,-500.0,0.0001299,2]
[338196560,1726383042097,-500.0,0.0001299,2]
[338196561,1726383042106,-597.26897455,0.0001299,2]
[338196562,1726383042115,-500.0,0.0001299,2]
[338196563,1726383042125,-500.0,0.0001299,2]
[338196564,1726383042134,-975.73,0.0001299,2]
[338196565,1726383042144,-500.0,0.0001299,2]
[338196566,1726383042155,-500.0,0.0001299,2]
[338196567,1726383042164,-500.0,0.0001299,2]
[338196568,1726383042174,-500.0,0.0001299,2]
[338196569,1726383042183,-500.0,0.0001299,2]
[338196570,1726383042192,-1375.7,0.0001299,2]
[338196571,1726383042202,-573.75,0.0001299,2]
[338196572,1726383042211,-500.0,0.0001299,2]
[338196573,1726383042220,-500.0,0.0001299,2]
[338196574,1726383042231,-500.0,0.0001299,2]
[338196575,1726383042242,-500.0,0.0001299,2]
[338196576,1726383042251,-500.0,0.0001299,2]
[338196577,1726383042260,-3998.04,0.0001299,2]
[338196578,1726383042270,-500.0,0.0001299,2]
[338196579,1726383042279,-500.0,0.0001299,2]
[338196580,1726383042289,-500.0,0.0001299,2]
[338196581,1726383042299,-1512.71,0.0001299,2]
[338196582,1726383042308,-500.0,0.0001299,2]
[338196583,1726383042317,-793.51,0.0001299,2]
[338196584,1726383042327,-500.0,0.0001299,2]
[338196585,1726383042337,-500.0,0.0001299,2]
[338196586,1726383042346,-498.68212153,0.0001299,2]
[338196587,1726383042356,-1847.59,0.0001299,2]
[338196588,1726383042365,-1453.84,0.0001299,2]
[338196589,1726383042375,-500.0,0.0001299,2]
[338196590,1726383042385,-500.0,0.0001299,2]
[338196591,1726383042394,-995.79,0.0001299,2]
[338196592,1726383042403,-500.0,0.0001299,2]
[338196593,1726383042412,-500.0,0.0001299,2]
[338196594,1726383042422,-500.0,0.0001299,2]
[338196595,1726383042431,-500.0,0.0001299,2]
[338196596,1726383042441,-4925.55,0.0001299,2]
[338196597,1726383042450,-920.86,0.0001299,2]
[338196598,1726383042459,-500.0,0.0001299,2]
[338196599,1726383042468,-500.0,0.0001299,2]
[338196600,1726383042479,-500.0,0.0001299,2]
[338196601,1726383042489,-1023.36,0.0001299,2]
[338196602,1726383042499,-1314.5,0.0001299,2]
[338196603,1726383042509,-500.0,0.0001299,2]
[338196604,1726383042519,-500.0,0.0001299,2]
[338196605,1726383042529,-4259.35,0.0001299,2]
[338196606,1726383042538,-530.11,0.0001299,2]
[338196607,1726383042547,-500.0,0.0001299,2]
[338196608,1726383042558,-2818.39,0.0001299,2]
[338196609,1726383042567,-458.11764759,0.0001299,2]
[338196610,1726383042589,-513.17235241,0.0001299,2]
[338196611,1726383042599,-500.0,0.0001299,2]
[338196612,1726383042609,-500.0,0.0001299,2]
[338196613,1726383042618,-2787.89,0.0001299,2]
[338196614,1726383042627,-875.91,0.0001299,2]
[338196615,1726383042636,-573.67,0.0001299,2]
[338196616,1726383042646,-500.0,0.0001299,2]
[338196617,1726383042656,-500.0,0.0001299,2]
[338196618,1726383042666,-2155.54,0.0001299,2]
[338196619,1726383042675,-757.51,0.0001299,2]
[338196620,1726383042685,-2089.6,0.0001299,2]
[338196621,1726383042694,-1538.83,0.0001299,2]
[338196622,1726383042703,-659.11,0.0001299,2]
[338196623,1726383042713,-500.0,0.0001299,2]
[338196624,1726383042723,-863.58,0.0001299,2]
[338196625,1726383042732,-1021.3,0.0001299,2]
[338196626,1726383042741,-1913.88,0.0001299,2]
[338196627,1726383042750,-500.0,0.0001299,2]
[338196628,1726383042759,-1449.33,0.0001299,2]
[338196629,1726383042768,-1653.94,0.0001299,2]
[338196630,1726383042778,-500.0,0.0001299,2]
[338196631,1726383042787,-500.0,0.0001299,2]
[338196632,1726383042797,-500.0,0.0001299,2]
[338196633,1726383042806,-524.55,0.0001299,2]
[338196634,1726383042816,-2924.26,0.0001299,2]
[338196635,1726383042825,-500.0,0.0001299,2]
[338196636,1726383042834,-686.58,0.0001299,2]
[338196637,1726383042843,-2407.25,0.0001299,2]
[338196638,1726383042853,-500.0,0.0001299,2]
[338196639,1726383042862,-2097.54,0.0001299,2]
[338196640,1726383042872,-665.01,0.0001299,2]
[338196641,1726383042882,-500.0,0.0001299,2]
[338196642,1726383042892,-698.17,0.0001299,2]
[338196643,1726383042903,-500.0,0.0001299,2]
[338196644,1726383042912,-882.46,0.0001299,2]
[338196645,1726383042921,-500.0,0.0001299,2]
[338196646,1726383042932,-500.0,0.0001299,2]
[338196647,1726383042942,-31109.859,0.0001299,2]
[338196648,1726383042952,-500.0,0.0001299,2]
[338196649,1726383042962,-2759.44,0.0001299,2]
[338196650,1726383042971,-2063.9,0.0001299,2]
[338196651,1726383042981,-3163.12,0.0001299,2]
[338196652,1726383042991,-500.0,0.0001299,2]
[338196653,1726383043001,-500.0,0.0001299,2]
[338196654,1726383043011,-500.0,0.0001299,2]
[338196657,1726383043020,-526.3,0.0001299,2]
[338196658,1726383043030,-1603.99,0.0001299,2]
[338196659,1726383043040,-788.03,0.0001299,2]
[338196660,1726383043049,-2766.96,0.0001299,2]
[338196661,1726383043059,-1963.62,0.0001299,2]
[338196662,1726383043068,-500.0,0.0001299,2]
[338196663,1726383043080,-618.98,0.0001299,2]
[338196664,1726383043090,-1586.88,0.0001299,2]
[338196665,1726383043099,-529.0,0.0001299,2]
[338196666,1726383043109,-1612.4,0.0001299,2]
[338196667,1726383043118,-500.0,0.0001299,2]
[338196668,1726383043130,-512.31,0.0001299,2]
[338196669,1726383043139,-1603.4,0.0001299,2]
[338196670,1726383043148,-500.0,0.0001299,2]
[338196671,1726383043159,-1727.81,0.0001299,2]
[338196672,1726383043168,-1791.83,0.0001299,2]
[338196673,1726383043178,-2263.19,0.0001299,2]
[338196674,1726383043187,-500.0,0.0001299,2]
[338196675,1726383043196,-1700.22,0.0001299,2]
[338196676,1726383043206,-1890.89,0.0001299,2]
[338196679,1726383043215,-1660.27,0.0001299,2]
[338196680,1726383043224,-2722.87,0.0001299,2]
[338196681,1726383043234,-1650.49,0.0001299,2]
[338196682,1726383043243,-500.0,0.0001299,2]
[338196684,1726383043252,-500.0,0.0001299,2]
[338196685,1726383043262,-500.0,0.0001299,2]
[338196686,1726383043271,-500.0,0.0001299,2]
[338196687,1726383043280,-1165.95,0.0001299,2]
[338196688,1726383043289,-647.02,0.0001299,2]
[338196689,1726383043299,-988.0,0.0001299,2]
[338196690,1726383043308,-500.0,0.0001299,2]
[338196691,1726383043318,-1728.91,0.0001299,2]
[338196692,1726383043328,-1045.59,0.0001299,2]
[338196693,1726383043338,-500.0,0.0001299,2]
[338196694,1726383043347,-500.0,0.0001299,2]
[338196695,1726383043357,-905.9,0.0001299,2]
[338196696,1726383043366,-500.0,0.0001299,2]
[338196697,1726383043375,-271.39071639,0.0001299,2]
[338196698,1726383043384,-2081.96,0.0001299,2]
[338196699,1726383043394,-500.0,0.0001299,2]
[338196700,1726383043403,-500.0,0.0001299,2]
[338196701,1726383043412,-500.0,0.0001299,2]
[338196702,1726383043421,-1011.37,0.0001299,2]
[338196703,1726383043431,-2170.6,0.0001299,2]
[338196704,1726383043440,-500.0,0.0001299,2]
[338196705,1726383043449,-648.62,0.0001299,2]
[338196706,1726383043458,-640.75,0.0001299,2]
[338196707,1726383043467,-500.0,0.0001299,2]
[338196708,1726383043476,-716.76,0.0001299,2]
[338196709,1726383043485,-500.0,0.0001299,2]
[338196710,1726383043494,-2908.39,0.0001299,2]
[338196711,1726383043504,-1735.31,0.0001299,2]
[338196712,1726383043513,-500.0,0.0001299,2]
[338196713,1726383043522,-1454.47,0.0001299,2]
[338196714,1726383043531,-3026.25,0.0001299,2]
[338196715,1726383043541,-799.02,0.0001299,2]
[338196716,1726383043550,-500.0,0.0001299,2]
[338196717,1726383043560,-500.0,0.0001299,2]
[338196718,1726383043570,-737.18,0.0001299,2]
[338196719,1726383043580,-1016.11,0.0001299,2]
[338196720,1726383043589,-500.0,0.0001299,2]
[338196721,1726383043598,-1074.98,0.0001299,2]
[338196722,1726383043608,-1460.03,0.0001299,2]
[338196723,1726383043617,-500.0,0.0001299,2]
[338196724,1726383043626,-645.99,0.0001299,2]
[338196725,1726383043635,-500.0,0.0001299,2]
[338196726,1726383043644,-835.49,0.0001299,2]
[338196727,1726383043653,-2004.01,0.0001299,2]
[338196728,1726383043663,-500.0,0.0001299,2]
[338196729,1726383043671,-1554.15,0.0001299,2]
[338196730,1726383043681,-500.0,0.0001299,2]
[338196731,1726383043690,-935.07,0.0001299,2]
[338196732,1726383043700,-500.0,0.0001299,2]
[338196733,1726383043709,-1418.88,0.0001299,2]
[338196735,1726383043718,-500.0,0.0001299,2]
[338196737,1726383043727,-500.0,0.0001299,2]
[338196739,1726383043736,-2097.23,0.0001299,2]
[338196741,1726383043746,-371.5903437,0.0001299,2]
[338196743,1726383043755,-2096.49,0.0001299,2]
[338196745,1726383043764,-1102.32,0.0001299,2]
[338196747,1726383043774,-500.0,0.0001299,2]
[338196749,1726383043783,-1024.87,0.0001299,2]
[338196751,1726383043792,-590.49,0.0001299,2]
[338196753,1726383043801,-532.6572831,0.0001299,2]
[338196755,1726383043811,-1509.86,0.0001299,2]
[338196757,1726383043820,-711.06,0.0001299,2]
[338196759,1726383043831,-1919.73,0.0001299,2]
[338196761,1726383043839,-610.79,0.0001299,2]
[338196763,1726383043849,-1291.83,0.0001299,2]
[338196765,1726383043858,-500.0,0.0001299,2]
[338196767,1726383043868,-1094.72,0.0001299,2]
[338196769,1726383043877,-500.0,0.0001299,2]
[338196771,1726383043886,-875.0,0.0001299,2]
[338196773,1726383043895,-500.0,0.0001299,2]
[338196775,1726383043905,-1252.57,0.0001299,2]
[338196777,1726383043914,-500.0,0.0001299,2]
[338196779,1726383043923,-500.0,0.0001299,2]
[338196781,1726383043932,-500.0,0.0001299,2]
[338196782,1726383043941,-1032.99,0.0001299,2]
[338196783,1726383043950,-2845.06,0.0001299,2]
[338196784,1726383043960,-500.0,0.0001299,2]
[338196785,1726383043969,-500.0,0.0001299,2]
[338196786,1726383043978,-500.0,0.0001299,2]
[338196787,1726383043987,-1298.42,0.0001299,2]
[338196788,1726383043997,-2524.62,0.0001299,2]
[338196789,1726383044006,-352.71053939,0.0001299,2]
[338196790,1726383044016,-542.83,0.0001299,2]
[338196791,1726383044025,-637.75478133,0.0001299,2]
[338196792,1726383044034,-1000.68,0.0001299,2]
[338196793,1726383044044,-1703.74,0.0001299,2]
[338196794,1726383044054,-2238.59,0.0001299,2]
[338196795,1726383044063,-500.0,0.0001299,2]
[338196796,1726383044073,-500.0,0.0001299,2]
[338196797,1726383044085,-1057.36,0.0001299,2]
[338196798,1726383044094,-1893.78,0.0001299,2]
[338196799,1726383044103,-500.0,0.0001299,2]
[338196800,1726383044112,-1994.33,0.0001299,2]
[338196801,1726383044122,-1847.59,0.0001299,2]
[338196802,1726383044132,-2745.58,0.0001299,2]
[338196803,1726383044141,-525.43,0.0001299,2]
[338196804,1726383044365,-500.0,0.0001299,2]
[338196805,1726383044375,-2341.01,0.0001299,2]
[338196806,1726383044385,-658.48,0.0001299,2]
[338196807,1726383044395,-878.52,0.0001299,2]
[338196808,1726383044404,-500.0,0.0001299,2]
[338196809,1726383044415,-858.04,0.0001299,2]
[338196810,1726383044425,-5260.12,0.0001299,2]
[338196811,1726383044435,-500.0,0.0001299,2]
[338196812,1726383044444,-728.36,0.0001299,2]
[338196813,1726383044454,-500.0,0.0001299,2]
[338196814,1726383044463,-500.0,0.0001299,2]
[338196815,1726383044473,-500.0,0.0001299,2]
[338196816,1726383044482,-657.24,0.0001299,2]
[338196817,1726383044492,-1540.54,0.0001299,2]
[338196818,1726383044502,-577.53,0.0001299,2]
[338196819,1726383044512,-1293.31,0.0001299,2]
[338196820,1726383044522,-1429.35,0.0001299,2]
[338196821,1726383044532,-500.0,0.0001299,2]
[338196822,1726383044541,-1149.85,0.0001299,2]
[338196823,1726383044552,-500.0,0.0001299,2]
[338196824,1726383044561,-769.22,0.0001299,2]
[338196825,1726383044570,-797.41,0.0001299,2]
[338196826,1726383044579,-500.0,0.0001299,2]
[338196827,1726383044589,-534.97,0.0001299,2]
[338196828,1726383044599,-1592.48,0.0001299,2]
[338196829,1726383044608,-1216.76,0.0001299,2]
[338196830,1726383044617,-582.65,0.0001299,2]
[338196831,1726383044627,-500.0,0.0001299,2]
[338196832,1726383044636,-3679.56,0.0001299,2]
[338196833,1726383044645,-627.33,0.0001299,2]
[338196834,1726383044655,-2997.92,0.0001299,2]
[338196835,1726383044664,-500.0,0.0001299,2]
[338196836,1726383044674,-930.81,0.0001299,2]
[338196837,1726383044683,-16498.42,0.0001299,2]
[338196838,1726383044693,-1512.36,0.0001299,2]
[338196839,1726383044702,-500.0,0.0001299,2]
[338196840,1726383044712,-1259.53,0.0001299,2]
[338196841,1726383044721,-703.28,0.0001299,2]
[338196842,1726383044731,-731.39,0.0001299,2]
[338196843,1726383044740,-816.7,0.0001299,2]
[338196844,1726383044749,-1650.78,0.0001299,2]
[338196845,1726383044760,-500.0,0.0001299,2]
[338196846,1726383044769,-3894.77,0.0001299,2]
[338196847,1726383044779,-1426.9,0.0001299,2]
[338196848,1726383044790,-714.08,0.0001299,2]
[338196849,1726383044801,-1596.2,0.0001299,2]
[338196850,1726383044810,-834.56,0.0001299,2]
[338196851,1726383044820,-500.0,0.0001299,2]
[338196852,1726383044829,-1810.6,0.0001299,2]
[338196853,1726383044840,-2295.16,0.0001299,2]
[338196854,1726383044850,-500.0,0.0001299,2]
[338196855,1726383044860,-1007.18,0.0001299,2]
[338196856,1726383044871,-502.0,0.0001299,2]
[338196857,1726383044880,-500.0,0.0001299,2]
[338196858,1726383044889,-1270.61,0.0001299,2]
[338196859,1726383044899,-1374.08,0.0001299,2]
[338196860,1726383044908,-1175.3,0.0001299,2]
[338196861,1726383044918,-500.0,0.0001299,2]
[338196862,1726383044928,-10350.88,0.0001299,2]
[338196863,1726383044938,-500.0,0.0001299,2]
[338196864,1726383044948,-500.0,0.0001299,2]
[338196865,1726383044957,-262.28528063,0.0001299,2]
[338196866,1726383044967,-736.74,0.0001299,2]
[338196867,1726383044977,-2592.4,0.0001299,2]
[338196868,1726383044987,-1267.82,0.0001299,2]
[338196869,1726383044996,-631.17,0.0001299,2]
[338196870,1726383045006,-500.0,0.0001299,2]
[338196871,1726383045015,-1365.44,0.0001299,2]
[338196872,1726383045025,-500.0,0.0001299,2]
[338196873,1726383045034,-500.0,0.0001299,2]
[338196874,1726383045043,-2460.74,0.0001299,2]
[338196875,1726383045053,-1365.02,0.0001299,2]
[338196876,1726383045062,-500.0,0.0001299,2]
[338196877,1726383045072,-1196.83,0.0001299,2]
[338196878,1726383045084,-843.55,0.0001299,2]
[338196879,1726383045095,-590.8,0.0001299,2]
[338196880,1726383045104,-823.28,0.0001299,2]
[338196881,1726383045113,-500.0,0.0001299,2]
[338196882,1726383045123,-696.17,0.0001299,2]
[338196883,1726383045132,-500.0,0.0001299,2]
[338196884,1726383045142,-952.25,0.0001299,2]
[338196885,1726383045152,-500.0,0.0001299,2]
[338196886,1726383045162,-500.0,0.0001299,2]
[338196887,1726383045173,-1790.44,0.0001299,2]
[338196888,1726383045183,-3964.19,0.0001299,2]
[338196889,1726383045192,-1497.01,0.0001299,2]
[338196890,1726383045202,-968.72,0.0001299,2]
[338196891,1726383045211,-1561.09,0.0001299,2]
[338196892,1726383045221,-1628.54,0.0001299,2]
[338196893,1726383045231,-500.0,0.0001299,2]
[338196894,1726383045241,-4106.91,0.0001299,2]
[338196895,1726383045250,-500.0,0.0001299,2]
[338196896,1726383045259,-500.0,0.0001299,2]
[338196897,1726383045269,-1492.78,0.0001299,2]
[338196898,1726383045278,-1690.12,0.0001299,2]
[338196899,1726383045287,-5138.45,0.0001299,2]
[338196900,1726383045297,-500.0,0.0001299,2]
[338196901,1726383045307,-1054.24,0.0001299,2]
[338196902,1726383045325,-2697.1,0.0001299,2]
[338196903,1726383045334,-500.0,0.0001299,2]
[338196904,1726383045344,-3257.87,0.0001299,2]
[338196905,1726383045353,-1725.2,0.0001299,2]
[338196906,1726383045363,-566.71,0.0001299,2]
[338196907,1726383045372,-2364.48,0.0001299,2]
[338196908,1726383045382,-30837.46,0.0001299,2]
[338196909,1726383045391,-500.0,0.0001299,2]
[338196910,1726383045400,-500.0,0.0001299,2]
[338196911,1726383045410,-500.0,0.00012991,2]
[338196912,1726383045419,-500.0,0.00012991,2]
[338196913,1726383045429,-500.0,0.00012991,2]
[338196914,1726383045438,-500.0,0.00012991,2]
[338196915,1726383045448,-500.0,0.00012991,2]
[338196916,1726383045458,-500.0,0.00012991,2]
[338196917,1726383045467,-500.0,0.00012991,2]
[338196918,1726383045476,-500.0,0.00012991,2]
[338196919,1726383045486,-500.0,0.00012991,2]
[338196920,1726383045497,-500.0,0.00012991,2]
[338196921,1726383045507,-500.0,0.00012991,2]
[338196922,1726383045517,-500.0,0.00012991,2]
[338196923,1726383045527,-500.0,0.00012991,2]
[338196924,1726383045537,-500.0,0.00012991,2]
[338196925,1726383045547,-500.0,0.00012991,2]
[338196926,1726383045558,-500.0,0.00012991,2]